bitfinex-derivatives/quotes_BTCF0:USTF0_20260131
["timestamp","ask_amount","ask_price","bid_price","bid_amount"]
[1769884407047,0.2992605,78446.0,78420.0,0.00014069]
[1769884407254,0.2992605,78444.0,78398.0,0.012775]
[1769884407756,0.12751686,78443.0,78398.0,0.012775]
[1769884408053,0.2992605,78442.0,78398.0,0.012775]
[1769884408253,0.2992605,78440.0,78398.0,0.012775]
[1769884408453,0.2992605,78438.0,78398.0,0.012775]
[1769884408752,0.2992605,78436.0,78398.0,0.012775]
[1769884408947,0.2992605,78436.0,78385.0,0.1525599]
[1769884408948,0.2992605,78434.0,78386.0,0.40289193]
[1769884409148,0.2992605,78432.0,78386.0,0.30118533]
[1769884409353,0.2992605,78430.0,78386.0,0.30118533]
[1769884409551,0.2992605,78430.0,78395.0,0.012775]
[1769884409750,0.12752011,78429.0,78402.0,0.30118233]
[1769884409953,0.00316266,78444.0,78412.0,0.28840833]
[1769884410147,0.00316266,78455.0,78428.0,0.28840833]
[1769884410348,0.00316266,78464.0,78438.0,0.28840833]
[1769884410651,0.2992605,78492.0,78453.0,0.28840833]
[1769884410852,0.2992605,78499.0,78454.0,0.43964]
[1769884411052,0.30917705,78508.0,78454.0,0.43964]
[1769884411053,0.1274681,78480.0,78454.0,0.1034]
[1769884411359,0.1034,78482.0,78454.0,0.1034]
[1769884411948,0.1034,78482.0,78455.0,0.28840833]
[1769884412960,0.1034,78482.0,78457.0,0.28840833]
[1769884413358,0.4026605,78482.0,78454.0,0.1034]
[1769884413561,0.42670017,78481.0,78454.0,0.1034]
[1769884413762,0.2992605,78480.0,78443.0,0.012767]
[1769884413952,0.2992605,78480.0,78443.0,0.30117533]
[1769884414158,0.2992605,78480.0,78443.0,0.28840833]
[1769884414359,0.2992605,78478.0,78443.0,0.28840833]
[1769884414852,0.2992605,78476.0,78437.0,0.012768]
[1769884415059,0.2992605,78469.0,78425.0,0.28840833]
[1769884415354,0.1034,78468.0,78430.0,0.012769]
[1769884415555,0.2992605,78467.0,78431.0,0.28840833]
[1769884415755,0.2992605,78465.0,78425.0,0.28840833]
[1769884415964,0.2992605,78456.0,78419.0,0.00015675]
[1769884416270,0.3120285,78442.0,78419.0,0.00015675]
[1769884416863,0.2992605,78442.0,78419.0,0.00015675]
[1769884417065,0.12750141,78441.0,78419.0,0.00015675]
[1769884417461,0.39973789,78441.0,78419.0,0.00015675]
[1769884417659,0.27223648,78440.0,78419.0,0.00015675]
[1769884417861,0.27223648,78436.0,78397.0,0.1034]
[1769884418066,0.27223648,78433.0,78397.0,0.1034]
[1769884418661,0.27223648,78431.0,78397.0,0.1034]
[1769884418966,0.3362,78439.0,78397.0,0.1034]
[1769884418967,0.27223648,78429.0,78397.0,0.1034]
[1769884419864,0.27223648,78427.0,78397.0,0.1034]
[1769884420168,0.2723468,78426.0,78397.0,0.1034]
[1769884420564,0.27223648,78425.0,78397.0,0.1034]
[1769884421065,0.27223648,78423.0,78397.0,0.1034]
[1769884421260,0.12753231,78424.0,78398.0,0.012775]
[1769884421464,0.00011032,78426.0,78398.0,0.31143179]
[1769884421663,0.12753231,78425.0,78398.0,0.27420679]
[1769884421862,0.00011032,78426.0,78398.0,0.26143179]
[1769884422267,0.12753312,78425.0,78398.0,0.26143179]
[1769884423267,0.00011032,78426.0,78404.0,0.012774]
[1769884423668,0.00011032,78426.0,78405.0,0.28738506]
[1769884424067,0.00011032,78426.0,78405.0,0.33628]
[1769884425569,0.00011032,78426.0,78397.0,0.1034]
[1769884425570,0.27876395,78425.0,78397.0,0.1034]
[1769884425961,0.27876395,78425.0,78398.0,0.012775]
[1769884426161,0.00011032,78426.0,78398.0,0.012775]
[1769884427069,0.00011032,78426.0,78398.0,0.30016006]
[1769884431164,0.00011032,78426.0,78397.0,0.1034]
[1769884431165,0.00011032,78426.0,78402.0,0.30015906]
[1769884432073,0.40629219,78425.0,78397.0,0.116175]
[1769884432368,0.27876395,78424.0,78397.0,0.116175]
[1769884432765,0.27876395,78424.0,78397.0,0.1034]
[1769884433069,0.12753393,78423.0,78398.0,0.28738506]
[1769884433267,0.12753393,78423.0,78398.0,0.30016006]
[1769884433569,0.00011032,78426.0,78398.0,0.30016006]
[1769884433961,0.12753393,78425.0,78403.0,0.012774]
[1769884434168,0.00011032,78426.0,78403.0,0.30015906]
[1769884434573,0.001,78425.0,78403.0,0.30015906]
[1769884434967,0.001,78425.0,78408.0,0.28738506]
[1769884435161,0.001,78425.0,78409.0,0.33632]
[1769884435366,0.00011032,78426.0,78409.0,0.33632]
[1769884435570,0.00011032,78426.0,78407.0,0.012773]
[1769884435571,0.29164427,78426.0,78403.0,0.001]
[1769884435769,0.12752743,78425.0,78406.0,0.28738506]
[1769884436068,0.00011032,78426.0,78406.0,0.28738506]
[1769884436272,0.00011032,78426.0,78398.0,0.28738506]
[1769884437571,0.001,78425.0,78398.0,0.28738506]
[1769884437873,0.001,78425.0,78400.0,0.012774]
[1769884438078,0.001,78425.0,78402.0,0.012774]
[1769884438373,0.00011032,78426.0,78403.0,0.28738506]
[1769884438875,0.00011032,78426.0,78404.0,0.012774]
[1769884439471,0.00011032,78426.0,78403.0,0.28738506]
[1769884439881,0.12752743,78425.0,78403.0,0.28738506]
[1769884440075,0.40629138,78425.0,78402.0,0.001]
[1769884440581,0.27876395,78424.0,78402.0,0.001]
[1769884441279,0.10344,78431.0,78389.0,0.28738506]
[1769884441280,0.40629301,78423.0,78389.0,0.30016106]
[1769884441478,0.00011547,78422.0,78389.0,0.28738506]
[1769884441779,0.00011547,78422.0,78397.0,0.28738506]
[1769884442275,0.12754207,78421.0,78397.0,0.28738506]
[1769884442880,0.12754207,78421.0,78390.0,0.33636]
[1769884442881,0.27876395,78420.0,78390.0,0.33636]
[1769884443183,0.27876395,78420.0,78389.0,0.10344]
[1769884443574,0.27876395,78418.0,78389.0,0.10344]
[1769884443779,0.27876395,78416.0,78389.0,0.10344]
[1769884444277,0.12754369,78415.0,78389.0,0.10344]
[1769884444482,0.27876395,78416.0,78389.0,0.39082506]
[1769884444683,0.12754369,78415.0,78389.0,0.39082506]
[1769884444883,0.12754369,78415.0,78390.0,0.28738506]
[1769884445184,0.10354507,78417.0,78390.0,0.28738506]
[1769884445376,0.4063109,78416.0,78388.0,0.10128643]
[1769884445575,0.4063109,78416.0,78382.0,0.012777]
[1769884445576,0.27876395,78415.0,78384.0,0.28738506]
[1769884445780,0.00010507,78417.0,78398.0,0.28738506]
[1769884446183,0.00010507,78417.0,78400.0,0.28738506]
[1769884446481,0.10344,78433.0,78400.0,0.28738506]
[1769884446781,0.12754776,78429.0,78400.0,0.28738506]
[1769884447277,0.10344,78433.0,78401.0,0.28688458]
[1769884447481,7.26e-05,78432.0,78401.0,0.28688458]
[1769884447781,0.27000555,78431.0,78401.0,0.28688458]
[1769884448282,7.26e-05,78432.0,78401.0,0.28688458]
[1769884448483,0.12752418,78430.0,78402.0,0.28688458]
[1769884448679,7.26e-05,78432.0,78402.0,0.28688458]
[1769884448884,7.26e-05,78432.0,78403.0,0.28688458]
[1769884450383,0.005,78429.0,78403.0,0.28688458]
[1769884451080,0.005,78429.0,78403.0,0.28788458]
[1769884452680,0.005,78429.0,78406.0,0.28688458]
[1769884453687,7.26e-05,78432.0,78406.0,0.28688458]
[1769884454186,0.005,78428.0,78406.0,0.28688458]
[1769884455277,0.25197123,78454.0,78426.0,0.28688458]
[1769884455485,0.56114828,78470.0,78436.0,0.28688458]
[1769884455678,0.61098223,78472.0,78442.0,0.28688458]
[1769884455978,0.005,78473.0,78444.0,0.28688458]
[1769884456183,0.30917705,78482.0,78446.0,0.28688458]
[1769884456184,0.25697123,78482.0,78446.0,0.28688458]
[1769884456383,0.12746485,78478.0,78449.0,0.28688458]
[1769884456687,0.25697123,78487.0,78451.0,0.28688458]
[1769884456887,0.25697123,78487.0,78453.0,0.28688458]
[1769884457086,0.27000555,78482.0,78438.0,0.10128643]
[1769884457388,0.27000555,78478.0,78431.0,0.12744779]
[1769884457584,0.27000555,78475.0,78433.0,0.29965358]
[1769884457787,0.12744779,78481.0,78447.0,0.28688458]
[1769884457788,0.25197123,78481.0,78447.0,0.28688458]
[1769884457986,0.27000555,78485.0,78447.0,0.28688458]
[1769884458287,0.12746241,78480.0,78451.0,0.28688458]
[1769884458590,0.27000555,78487.0,78454.0,0.28688458]
[1769884458983,0.12744454,78484.0,78454.0,0.28688458]
[1769884459184,0.11793591,78483.0,78454.0,0.28688458]
[1769884459385,0.11793591,78482.0,78454.0,0.28688458]
[1769884459590,0.11793591,78481.0,78454.0,0.28688458]
[1769884459792,0.11793591,78480.0,78454.0,0.28688458]
[1769884459989,0.11793591,78479.0,78456.0,0.28688458]
[1769884460187,0.11793591,78478.0,78456.0,0.28688458]
[1769884460388,0.11793591,78477.0,78456.0,0.28688458]
[1769884460688,0.001,78481.0,78456.0,0.28688458]
[1769884460988,0.11773652,78480.0,78456.0,0.28688458]
[1769884461184,0.27100555,78481.0,78455.0,0.33632]
[1769884461390,0.27000555,78479.0,78455.0,0.33632]
[1769884461695,0.001,78481.0,78455.0,0.33632]
[1769884461696,0.27000555,78477.0,78455.0,0.33632]
[1769884461985,0.11765953,78476.0,78455.0,0.33632]
[1769884462191,0.11765953,78475.0,78455.0,0.33632]
[1769884462492,0.27000555,78481.0,78455.0,0.33632]
[1769884462693,0.11759938,78480.0,78455.0,0.33632]
[1769884462887,0.11759938,78479.0,78455.0,0.33632]
[1769884463286,0.001,78475.0,78455.0,0.33632]
[1769884463489,0.001,78475.0,78445.0,0.10344]
[1769884463490,0.1175583,78474.0,78445.0,0.10344]
[1769884463796,0.28276855,78472.0,78431.0,0.1034]
[1769884463990,0.27000555,78470.0,78431.0,0.1034]
[1769884464191,0.27000555,78466.0,78431.0,0.1034]
[1769884464387,0.27000555,78464.0,78431.0,0.1034]
[1769884464587,0.27000555,78462.0,78431.0,0.1034]
[1769884464787,0.27000555,78460.0,78431.0,0.1034]
[1769884464991,0.27000555,78458.0,78431.0,0.1034]
[1769884465291,0.49096385,78457.0,78431.0,0.1034]
[1769884465493,0.1175583,78456.0,78431.0,0.1034]
[1769884466185,0.1175583,78456.0,78428.0,0.01277]
[1769884466186,0.27000555,78455.0,78428.0,0.01277]
[1769884466385,0.27000555,78455.0,78425.0,0.28688458]
[1769884466386,0.1175583,78454.0,78425.0,0.28688458]
[1769884467389,0.1175583,78454.0,78427.0,0.28688458]
[1769884467592,0.1175583,78453.0,78429.0,0.28688458]
[1769884467796,0.1175583,78452.0,78429.0,0.28688458]
[1769884467992,0.1175583,78451.0,78429.0,0.28688458]
[1769884468189,0.1175583,78450.0,78431.0,0.28688458]
[1769884468389,0.11728243,78449.0,78431.0,0.28688458]
[1769884468591,0.1034,78457.0,78431.0,0.28688458]
[1769884468798,0.11729023,78456.0,78431.0,0.28688458]
[1769884468992,0.11729023,78455.0,78431.0,0.28688458]
[1769884469195,0.1034,78457.0,78431.0,0.28688458]
[1769884469196,0.11729023,78454.0,78431.0,0.28688458]
[1769884469396,0.11729023,78453.0,78431.0,0.28688458]
[1769884469594,0.11729023,78452.0,78431.0,0.28688458]
[1769884469797,0.11729023,78451.0,78431.0,0.28688458]
[1769884469995,0.11729023,78450.0,78431.0,0.28688458]
[1769884470197,0.1034,78457.0,78431.0,0.28688458]
[1769884470388,0.11731896,78456.0,78434.0,0.28688458]
[1769884470591,0.1034,78457.0,78437.0,0.28688458]
[1769884470592,0.11731896,78455.0,78437.0,0.28688458]
[1769884470791,0.1034,78457.0,78437.0,0.28688458]
[1769884470998,0.39748177,78454.0,78431.0,0.0759]
[1769884471197,0.11732894,78453.0,78431.0,0.0759]
[1769884471398,0.11732894,78452.0,78432.0,0.28688458]
[1769884471598,0.11732894,78451.0,78431.0,0.0759]
[1769884471797,0.11732894,78450.0,78431.0,0.0759]
[1769884471999,0.27000555,78455.0,78431.0,0.0759]
[1769884472194,0.11733494,78454.0,78431.0,0.0759]
[1769884472394,0.27000555,78452.0,78419.0,0.012771]
[1769884472600,0.27000555,78450.0,78419.0,0.012771]
[1769884472803,0.33624,78456.0,78419.0,0.012771]
[1769884472804,0.27000555,78448.0,78419.0,0.012771]
[1769884472995,0.11733494,78447.0,78419.0,0.29965558]
[1769884473193,0.11733494,78446.0,78419.0,0.29965558]
[1769884473393,0.11733494,78445.0,78419.0,0.29965558]
[1769884473598,0.27000555,78448.0,78423.0,0.012771]
[1769884473899,0.11748417,78447.0,78423.0,0.012771]
[1769884474097,0.11748417,78446.0,78419.0,0.28688458]
[1769884474404,0.27000555,78444.0,78418.0,9.601e-05]
[1769884474605,0.27000555,78442.0,78418.0,9.601e-05]
[1769884474901,0.27000555,78440.0,78418.0,9.601e-05]
[1769884475095,0.27000555,78438.0,78418.0,9.601e-05]
[1769884475296,0.38748972,78437.0,78418.0,9.601e-05]
[1769884475494,0.11748417,78436.0,78418.0,9.601e-05]
[1769884475696,0.27000555,78435.0,78405.0,0.012774]
[1769884475893,0.27000555,78433.0,78393.0,0.29965958]
[1769884476097,0.11748417,78432.0,78400.0,0.28688458]
[1769884476294,0.11748417,78431.0,78400.0,0.28688458]
[1769884476503,0.11748417,78430.0,78403.0,0.012774]
[1769884476705,9.601e-05,78429.0,78406.0,0.28688458]
[1769884476907,9.601e-05,78429.0,78408.0,0.2923099]
[1769884477102,9.601e-05,78429.0,78411.0,0.2923099]
[1769884477506,0.27085248,78450.0,78412.0,0.012772]
[1769884477700,0.27085248,78448.0,78416.0,0.2923099]
[1769884477897,0.39622273,78447.0,78416.0,0.2923099]
[1769884478103,0.39622273,78446.0,78416.0,0.2923099]
[1769884478309,0.12537025,78445.0,78416.0,0.2923099]
[1769884478501,0.12537025,78444.0,78418.0,0.2923099]
[1769884478808,0.12537025,78443.0,78418.0,0.2923099]
[1769884479108,0.27085248,78441.0,78413.0,0.1034]
[1769884479303,0.27085248,78439.0,78413.0,0.1034]
[1769884479503,0.27085248,78437.0,78396.0,0.3957099]
[1769884479707,0.27085248,78435.0,78396.0,0.3957099]
[1769884479904,0.27085248,78433.0,78399.0,0.2923099]
[1769884480104,0.12537025,78432.0,78399.0,0.2923099]
[1769884480499,0.12752418,78431.0,78402.0,0.2923099]
[1769884480699,0.12537025,78430.0,78402.0,0.2923099]
[1769884481102,0.12537025,78430.0,78404.0,0.2923099]
[1769884481305,0.27085248,78433.0,78396.0,0.1034]
[1769884481306,0.27085248,78428.0,78396.0,0.2923099]
[1769884481512,0.43968,78434.0,78398.0,0.2923099]
[1769884481701,0.12539888,78433.0,78398.0,0.2923099]
[1769884482010,0.25292306,78432.0,78400.0,0.29261764]
[1769884482209,0.12539888,78431.0,78400.0,0.29261764]
[1769884482409,0.12539888,78430.0,78404.0,0.29261764]
[1769884482606,0.12539888,78429.0,78404.0,0.29261764]
[1769884482807,0.12539888,78428.0,78409.0,0.29261764]
[1769884483007,0.1034,78434.0,78409.0,0.29261764]
[1769884483207,0.12501204,78433.0,78408.0,0.30539064]
[1769884483408,0.12501204,78432.0,78408.0,0.30539064]
[1769884483708,0.34128,78450.0,78397.0,0.1034]
[1769884483709,0.1034,78448.0,78419.0,0.29261764]
[1769884484004,0.1034,78448.0,78418.0,0.012771]
[1769884484005,0.1034,78448.0,78421.0,0.29261764]
[1769884484210,0.005,78456.0,78429.0,0.29261764]
[1769884484413,0.28690381,78466.0,78429.0,0.29261764]
[1769884484414,0.10344,78463.0,78429.0,0.29261764]
[1769884484607,0.10344,78463.0,78432.0,0.29261764]
[1769884485100,0.10344,78463.0,78436.0,0.29261764]
[1769884485304,0.10344,78463.0,78437.0,0.29261764]
[1769884485611,0.10344,78463.0,78439.0,0.29261764]
[1769884486110,0.28690381,78462.0,78436.0,0.33628]
[1769884486504,0.28690381,78460.0,78436.0,0.33628]
[1769884487107,0.12747297,78459.0,78433.0,0.10344]
[1769884487310,0.14023797,78459.0,78422.0,0.29261764]
[1769884487507,0.28690381,78458.0,78424.0,0.29261764]
[1769884488106,0.28690381,78456.0,78424.0,0.29261764]
[1769884488311,0.12748435,78457.0,78423.0,0.1034]
[1769884488312,0.12748435,78457.0,78434.0,0.29261764]
[1769884488512,0.10344,78463.0,78434.0,0.29261764]
[1769884489212,0.10344,78463.0,78441.0,0.30538564]
[1769884489415,0.10344,78463.0,78442.0,0.1034]
[1769884493916,0.10344,78463.0,78443.0,0.29261764]
[1769884494504,0.00080803,78463.0,78443.0,0.30538464]
[1769884495114,0.33628,78477.0,78443.0,0.30538464]
[1769884495711,0.12199909,78476.0,78443.0,0.30538464]
[1769884495912,0.12199909,78475.0,78443.0,0.30538464]
[1769884496112,0.12199909,78474.0,78443.0,0.30538464]
[1769884496313,0.12199909,78473.0,78443.0,0.30538464]
[1769884496512,0.12199909,78472.0,78443.0,0.30538464]
[1769884496712,0.12199909,78471.0,78443.0,0.30538464]
[1769884496904,0.12199909,78470.0,78443.0,0.30538464]
[1769884497108,0.12199909,78469.0,78443.0,0.30638464]
[1769884497310,0.1034,78478.0,78443.0,0.30638464]
[1769884497516,0.12195435,78477.0,78443.0,0.30638464]
[1769884497717,0.12195435,78476.0,78443.0,0.30638464]
[1769884497909,0.12195435,78475.0,78443.0,0.30538464]
[1769884498114,0.12195435,78474.0,78443.0,0.30538464]
[1769884498314,0.12195435,78473.0,78443.0,0.30538464]
[1769884498516,0.28690381,78471.0,78442.0,0.1034]
[1769884498716,0.12195435,78470.0,78442.0,0.1034]
[1769884498914,0.12195435,78469.0,78442.0,0.1034]
[1769884499113,0.12195435,78468.0,78442.0,0.39601764]
[1769884499315,0.40885816,78467.0,78442.0,0.1034]
[1769884499513,0.12195435,78466.0,78442.0,0.1034]
[1769884499714,0.12195435,78465.0,78442.0,0.1034]
[1769884499917,0.28690381,78467.0,78442.0,0.1034]
[1769884500121,0.12183931,78466.0,78442.0,0.1034]
[1769884500419,0.28690381,78464.0,78442.0,0.1034]
[1769884500717,0.28690381,78462.0,78442.0,0.08149339]
[1769884500922,0.28690381,78460.0,78442.0,0.08149339]
[1769884501115,0.28690381,78458.0,78442.0,0.08149339]
[1769884501319,0.28690381,78456.0,78430.0,0.3362]
[1769884501513,0.28690381,78452.0,78413.0,0.3362]
[1769884501818,0.45803931,78451.0,78416.0,0.29261764]
[1769884502016,0.12183931,78450.0,78416.0,0.29261764]
[1769884502314,0.22523931,78449.0,78422.0,0.29261764]
[1769884502514,0.001,78462.0,78434.0,0.012769]
[1769884502714,0.001,78462.0,78413.0,0.3362]
[1769884502715,0.001,78462.0,78442.0,0.29261764]
[1769884502918,0.001,78462.0,78443.0,0.29261764]
[1769884503320,0.1034,78466.0,78446.0,0.29261764]
[1769884505017,0.1034,78466.0,78444.0,0.1034]
[1769884505218,0.28690381,78465.0,78444.0,0.1034]
[1769884505417,0.28690381,78464.0,78429.0,0.29261764]
[1769884506712,0.28690381,78462.0,78427.0,0.4396]
[1769884506911,0.28690381,78461.0,78427.0,0.4396]
[1769884507312,0.29204908,78457.0,78427.0,0.1034]
[1769884507920,0.29204908,78455.0,78427.0,0.1034]
[1769884508523,0.29204908,78453.0,78427.0,0.1034]
[1769884508827,0.29204908,78451.0,78427.0,0.1034]
[1769884509820,0.12748597,78450.0,78427.0,0.1034]
[1769884510019,0.41953505,78450.0,78427.0,0.1034]
[1769884510420,0.29204908,78449.0,78427.0,0.1034]
[1769884510725,0.29204908,78448.0,78427.0,0.1034]
[1769884510918,0.29204908,78448.0,78399.0,0.41364]
[1769884510919,0.29204908,78448.0,78410.0,0.38307761]
[1769884511120,0.29204908,78446.0,78410.0,0.38307761]
[1769884511320,0.29204908,78445.0,78410.0,0.38307761]
[1769884511625,0.29204908,78445.0,78411.0,0.012773]
[1769884511828,0.12749003,78444.0,78411.0,0.012773]
[1769884512022,0.41953911,78444.0,78411.0,0.012773]
[1769884512333,0.29204908,78444.0,78411.0,0.29245061]
[1769884512724,0.29204908,78442.0,78411.0,0.29245061]
[1769884513122,0.29204908,78442.0,78411.0,0.27967761]
[1769884513324,0.29204908,78442.0,78410.0,0.1034]
[1769884513524,0.33624,78446.0,78410.0,0.1034]
[1769884513525,0.29204908,78436.0,78410.0,0.1034]
[1769884513727,0.29204908,78434.0,78410.0,0.1034]
[1769884514121,0.116169,78435.0,78394.0,0.29245261]
[1769884514122,0.29204908,78432.0,78394.0,0.27967761]
[1769884514529,0.29204908,78430.0,78394.0,0.27967761]
[1769884514729,0.29204908,78428.0,78394.0,0.27967761]
[1769884514928,0.29204908,78426.0,78394.0,0.27967761]
[1769884515223,0.11797796,78427.0,78394.0,0.27967761]
[1769884515224,0.29204908,78424.0,78394.0,0.27967761]
[1769884515423,0.29204908,78422.0,78391.0,0.1034]
[1769884515628,0.29204908,78420.0,78391.0,0.1034]
[1769884515925,0.29204908,78420.0,78380.0,0.012778]
[1769884515926,0.29204908,78418.0,78380.0,0.29245561]
[1769884516224,0.29204908,78416.0,78380.0,0.29245561]
[1769884516424,0.29204908,78414.0,78376.0,0.1034]
[1769884516621,0.29204908,78412.0,78376.0,0.1034]
[1769884516827,0.29204908,78410.0,78376.0,0.1034]
[1769884517028,0.29204908,78408.0,78376.0,0.1034]
[1769884517222,0.29204908,78406.0,78376.0,0.1034]
[1769884517423,0.29204908,78404.0,78376.0,0.1034]
[1769884517619,0.40969408,78403.0,78376.0,0.1034]
[1769884517820,0.29204908,78402.0,78376.0,0.1034]
[1769884518529,0.29204908,78400.0,78376.0,0.1034]
[1769884518925,0.11753614,78399.0,78376.0,0.1034]
[1769884519229,0.29204908,78397.0,78376.0,0.1034]
[1769884519630,0.29204908,78397.0,78372.0,0.00010021]
[1769884519631,0.40947733,78396.0,78372.0,0.00010021]
[1769884519831,0.29204908,78394.0,78372.0,0.00010021]
[1769884520032,0.29204908,78392.0,78372.0,0.00010021]
[1769884520222,0.29204908,78390.0,78350.0,0.43976]
[1769884520529,0.29204908,78388.0,78349.0,0.012783]
[1769884520720,0.10344,78393.0,78349.0,0.29246061]
[1769884520721,0.29204908,78386.0,78349.0,0.29246061]
[1769884520922,0.29204908,78384.0,78349.0,0.29246061]
[1769884521331,0.29204908,78382.0,78349.0,0.29246061]
[1769884521727,0.29204908,78382.0,78349.0,0.012783]
[1769884521929,0.29204908,78380.0,78346.0,0.10344]
[1769884522120,0.29204908,78378.0,78346.0,0.10344]
[1769884522321,0.29204908,78376.0,78346.0,0.10344]
[1769884522822,0.00010021,78377.0,78359.0,0.29245861]
[1769884523022,0.10344,78387.0,78363.0,0.01278]
[1769884523222,0.10344,78387.0,78351.0,0.33636]
[1769884523223,0.10344,78387.0,78364.0,0.10344]
[1769884523425,0.33636,78393.0,78364.0,0.10344]
[1769884523426,0.29204908,78386.0,78364.0,0.10344]
[1769884523822,0.1276145,78385.0,78364.0,0.10344]
[1769884524025,0.29204908,78384.0,78348.0,0.29246061]
[1769884524323,0.012776,78390.0,78348.0,0.29246061]
[1769884524324,0.29204908,78383.0,78353.0,0.012782]
[1769884524632,0.29204908,78383.0,78347.0,0.10344]
[1769884524633,0.1275917,78388.0,78364.0,0.01273]
[1769884524833,0.10344,78387.0,78364.0,0.01273]
[1769884525226,0.10344,78387.0,78364.0,0.29240761]
[1769884525427,0.10344,78387.0,78364.0,0.27967761]
[1769884525626,0.10344,78388.0,78358.0,0.012781]
[1769884526029,0.30482608,78387.0,78353.0,0.3364]
[1769884526229,0.29204908,78386.0,78353.0,0.3364]
[1769884526829,0.29204908,78381.0,78347.0,0.38311761]
[1769884527535,0.29204908,78379.0,78347.0,0.38311761]
[1769884527736,0.29199908,78379.0,78347.0,0.38311761]
[1769884527930,0.29199908,78379.0,78347.0,0.10344]
[1769884528130,0.12761124,78378.0,78347.0,0.10344]
[1769884528436,0.012777,78382.0,78347.0,0.10344]
[1769884528840,0.12761124,78381.0,78347.0,0.10344]
[1769884529039,0.012777,78382.0,78347.0,0.10344]
[1769884529331,0.1276088,78381.0,78347.0,0.38311761]
[1769884529540,0.10344,78388.0,78354.0,0.27967761]
[1769884529834,0.2310888,78387.0,78357.0,0.27967761]
[1769884530037,0.2310888,78387.0,78369.0,0.27967761]
[1769884530038,0.12367255,78387.0,78369.0,0.27967761]
[1769884530231,0.29204908,78402.0,78369.0,0.27967761]
[1769884530627,0.29204908,78397.0,78365.0,0.10348]
[1769884530835,0.12759821,78401.0,78347.0,0.29246061]
[1769884530836,0.29204908,78385.0,78347.0,0.29246061]
[1769884531033,0.29204908,78378.0,78345.0,0.012783]
[1769884531334,0.29204908,78372.0,78339.0,0.10348]
[1769884531635,0.39552908,78372.0,78339.0,0.10348]
[1769884531829,0.29204908,78371.0,78339.0,0.10348]
[1769884532027,0.29204908,78366.0,78339.0,0.10348]
[1769884532632,0.29204908,78364.0,78339.0,0.10348]
[1769884533227,0.12762997,78363.0,78339.0,0.10348]
[1769884533428,0.41967905,78363.0,78339.0,0.10348]
[1769884533629,0.41967905,78363.0,78337.0,0.03346428]
[1769884533943,0.29204908,78350.0,78319.0,0.00015723]
[1769884534236,0.29204908,78345.0,78319.0,0.00015723]
[1769884534434,0.29204908,78342.0,78296.0,0.10348]
[1769884534635,0.29204908,78335.0,78297.0,0.27967761]
[1769884534831,0.29204908,78344.0,78297.0,0.29246861]
[1769884535042,0.10348,78349.0,78309.0,0.27967761]
[1769884535238,0.29204908,78347.0,78312.0,0.27967761]
[1769884535439,0.29304908,78345.0,78310.0,0.10348]
[1769884535635,0.29304908,78345.0,78311.0,0.27967761]
[1769884535836,0.29204908,78343.0,78310.0,0.10348]
[1769884536036,0.29204908,78341.0,78310.0,0.10348]
[1769884536235,0.11689023,78342.0,78309.0,0.001]
[1769884536236,0.29204908,78334.0,78309.0,0.001]
[1769884536436,0.29204908,78316.0,78282.0,0.00014406]
[1769884536638,0.29204908,78312.0,78282.0,0.00014406]
[1769884536833,0.10352,78311.0,78282.0,0.00014406]
[1769884537043,0.27567349,78303.0,78282.0,0.00014406]
[1769884537344,0.27567349,78284.0,78250.0,0.10352]
[1769884537545,0.27567349,78279.0,78245.0,0.10352]
[1769884537740,0.28846849,78277.0,78245.0,0.10352]
[1769884538144,0.10352,78278.0,78232.0,0.29398667]
[1769884538145,0.27567349,78273.0,78232.0,0.29398667]
[1769884538442,0.61227349,78273.0,78234.0,0.29398667]
[1769884538639,0.61227349,78273.0,78236.0,0.29398667]
[1769884538844,0.12777756,78272.0,78237.0,0.30678767]
[1769884539046,0.27567349,78270.0,78237.0,0.29398667]
[1769884539342,0.10364626,78271.0,78231.0,0.10352]
[1769884539343,0.00012626,78271.0,78243.0,0.29398667]
[1769884539535,0.27579975,78271.0,78236.0,0.012801]
[1769884539735,0.27579975,78271.0,78232.0,0.29398667]
[1769884539736,0.27567349,78269.0,78232.0,0.29398667]
[1769884539942,0.23130817,78270.0,78234.0,0.29398667]
[1769884540241,0.10352,78270.0,78234.0,0.29398667]
[1769884540440,0.12779471,78269.0,78241.0,0.0128]
[1769884540637,0.10352,78270.0,78241.0,0.0128]
[1769884541038,0.10352,78270.0,78234.0,0.29398667]
[1769884541039,0.10352,78270.0,78234.0,0.30678767]
[1769884541343,0.27579975,78271.0,78244.0,0.29398667]
[1769884541344,0.00012626,78271.0,78244.0,0.29398667]
[1769884541541,0.00012626,78271.0,78235.0,0.12778654]
[1769884541542,0.27567349,78293.0,78261.0,0.012797]
[1769884541845,0.27390214,78304.0,78271.0,0.29671508]
[1769884542146,0.40165358,78315.0,78279.0,0.29671508]
[1769884542445,0.10356,78319.0,78287.0,0.30950808]
[1769884542446,0.00011558,78314.0,78287.0,0.30950808]
[1769884542638,0.00011558,78314.0,78287.0,0.29671508]
[1769884542842,0.00011558,78314.0,78279.0,0.10356]
[1769884542843,0.00011558,78314.0,78295.0,0.29671508]
[1769884543040,0.27390214,78337.0,78302.0,0.29671508]
[1769884543348,0.10356,78338.0,78307.0,0.01279]
[1769884543749,0.10356,78338.0,78307.0,0.30950508]
[1769884544042,5.945e-05,78337.0,78307.0,0.30950508]
[1769884544646,5.945e-05,78337.0,78307.0,0.29671508]
[1769884544836,5.945e-05,78337.0,78307.0,0.29771508]
[1769884545641,0.27390214,78335.0,78302.0,0.33676]
[1769884546043,0.27390214,78333.0,78302.0,0.33676]
[1769884546255,5.945e-05,78337.0,78303.0,0.29671508]
[1769884546445,5.945e-05,78337.0,78303.0,0.30950508]
[1769884546642,0.27390214,78335.0,78296.0,0.012791]
[1769884546838,0.27390214,78335.0,78296.0,0.30950608]
[1769884547039,5.945e-05,78337.0,78303.0,0.01279]
[1769884547250,0.27396159,78337.0,78302.0,0.29671508]
[1769884547440,0.27390214,78335.0,78302.0,0.29671508]
[1769884547637,0.37746214,78334.0,78302.0,0.29671508]
[1769884547841,0.28668714,78333.0,78295.0,0.10356]
[1769884548039,0.27390214,78332.0,78295.0,0.10356]
[1769884548237,0.27390214,78330.0,78295.0,0.10356]
[1769884548649,0.28668814,78328.0,78283.0,0.012793]
[1769884548848,0.28668914,78322.0,78281.0,0.29671508]
[1769884549149,0.27390214,78314.0,78279.0,0.10356]
[1769884549349,0.27390214,78310.0,78279.0,0.10356]
[1769884549751,0.12770495,78309.0,78279.0,0.10356]
[1769884550750,0.10361945,78313.0,78280.0,0.29671508]
[1769884551149,0.001,78309.0,78280.0,0.29671508]
[1769884551445,0.001,78309.0,78279.0,0.10356]